fUST/lending_fUST_20241206
["ID","MTS","AMOUNT","RATE_DAILY","PERIOD"]
[344424023,1733447458623,-500.0,0.00030136,7]
[344424024,1733447458632,-500.0,0.00030136,7]
[344424025,1733447458642,-504.88377426,0.00030136,7]
[344424026,1733447458652,-500.0,0.00030136,7]
[344424027,1733447458662,-500.0,0.00030136,7]
[344424028,1733447458673,-500.0,0.00030136,7]
[344424029,1733447458684,-500.0,0.00030136,7]
[344424030,1733447458695,-502.62683356,0.00030136,7]
[344424031,1733447458705,-500.0,0.00030136,7]
[344424032,1733447458716,-500.0,0.00030136,7]
[344424033,1733447458725,-500.0,0.00030136,7]
[344424034,1733447458736,-500.0,0.00030136,7]
[344424035,1733447458746,-500.0,0.00030136,7]
[344424036,1733447458755,-500.0,0.00030136,7]
[344424037,1733447458765,-557.30638709,0.00030136,7]
[344424038,1733447458774,-500.0,0.00030136,7]
[344424039,1733447458784,-500.0,0.00030136,7]
[344424040,1733447458793,-500.0,0.00030136,7]
[344424041,1733447458803,-500.0,0.00030136,7]
[344424042,1733447458812,-500.0,0.00030136,7]
[344424043,1733447458822,-500.0,0.00030136,7]
[344424044,1733447458832,-1007.27,0.00030136,7]
[344424045,1733447458841,-500.0,0.00030136,7]
[344424046,1733447458851,-500.0,0.00030136,7]
[344424047,1733447458860,-269.224744,0.00030136,7]
[344424048,1733447458869,-500.0,0.00030136,7]
[344424049,1733447458879,-1007.27,0.00030136,7]
[344424050,1733447458888,-500.0,0.00030136,7]
[344424051,1733447458897,-500.0,0.00030136,7]
[344424052,1733447458907,-269.224744,0.00030136,7]
[344424053,1733447458918,-1007.27,0.00030136,7]
[344424054,1733447458927,-500.0,0.00030136,7]
[344424055,1733447458937,-500.0,0.00030136,7]
[344424056,1733447458947,-1007.27,0.00030136,7]
[344424057,1733447458957,-269.224744,0.00030136,7]
[344424058,1733447458967,-500.0,0.00030136,7]
[344424059,1733447458977,-449.39622488,0.00030136,7]
[344424060,1733447458991,-1007.27,0.00030136,7]
[344424061,1733447459001,-500.0,0.00030136,7]
[344424062,1733447459011,-269.224744,0.00030136,7]
[344424063,1733447459020,-1007.27,0.00030136,7]
[344424064,1733447459030,-500.0,0.00030136,7]
[344424065,1733447459040,-1007.27,0.00030136,7]
[344424066,1733447459049,-269.224744,0.00030136,7]
[344424067,1733447459059,-530.79624331,0.00030136,7]
[344424068,1733447459068,-1007.27,0.00030136,7]
[344424069,1733447459077,-269.224744,0.00030136,7]
[344424070,1733447459091,-1007.27,0.00030136,7]
[344424071,1733447459101,-1007.27,0.00030136,7]
[344424072,1733447459111,-1007.27,0.00030136,7]
[344424073,1733447459120,-500.0,0.00030136,7]
[344424074,1733447459130,-1007.27,0.00030136,7]
[344424075,1733447459143,-269.224744,0.00030136,7]
[344424076,1733447459153,-500.0,0.00030136,7]
[344424077,1733447459164,-500.0,0.00030136,7]
[344424078,1733447459173,-1007.27,0.00030136,7]
[344424079,1733447459183,-500.0,0.00030136,7]
[344424080,1733447459192,-269.224744,0.00030136,7]
[344424081,1733447459202,-500.0,0.00030136,7]
[344424082,1733447459212,-1007.27,0.00030136,7]
[344424083,1733447459221,-500.0,0.00030136,7]
[344424084,1733447459231,-500.0,0.00030136,7]
[344424085,1733447459240,-1007.27,0.00030136,7]
[344424086,1733447459250,-269.224744,0.00030136,7]
[344424087,1733447459259,-500.0,0.00030136,7]
[344424088,1733447459270,-500.0,0.00030136,7]
[344424089,1733447459280,-1007.27,0.00030136,7]
[344424090,1733447459289,-500.0,0.00030136,7]
[344424091,1733447459298,-269.224744,0.00030136,7]
[344424092,1733447459308,-500.0,0.00030136,7]
[344424093,1733447459318,-1007.27,0.00030136,7]
[344424094,1733447459328,-500.0,0.00030136,7]
[344424095,1733447459339,-500.0,0.00030136,7]
[344424096,1733447459348,-500.0,0.00030136,7]
[344424097,1733447459359,-1007.27,0.00030136,7]
[344424098,1733447459373,-503.20977461,0.00030136,7]
[344424099,1733447459383,-269.224744,0.00030136,7]
[344424100,1733447459392,-500.0,0.00030136,7]
[344424101,1733447459402,-563.32889405,0.00030136,7]
[344424102,1733447459494,-1007.27,0.00030136,7]
[344424103,1733447459505,-500.0,0.00030136,7]
[344424104,1733447459515,-269.224744,0.00030136,7]
[344424105,1733447459524,-1007.27,0.00030136,7]
[344424106,1733447459534,-500.0,0.00030136,7]
[344424107,1733447459544,-641.32,0.00030136,7]
[344424108,1733447459559,-1007.27,0.00030136,7]
[344424109,1733447459568,-269.224744,0.00030136,7]
[344424110,1733447459578,-500.0,0.00030136,7]
[344424111,1733447459587,-519.58327798,0.00030136,7]
[344424112,1733447459598,-1007.27,0.00030136,7]
[344424113,1733447459607,-500.0,0.00030136,7]
[344424114,1733447459617,-1007.27,0.00030136,7]
[344424115,1733447459628,-500.0,0.00030136,7]
[344424116,1733447459637,-1007.46293788,0.00030136,7]
[344424117,1733447459647,-500.0,0.00030136,7]
[344424118,1733447459657,-500.0,0.00030136,7]
[344424119,1733447459668,-500.0,0.00030136,7]
[344424120,1733447459677,-269.224744,0.00030136,7]
[344424121,1733447459687,-500.0,0.00030136,7]
[344424122,1733447459696,-500.0,0.00030136,7]
[344424123,1733447459706,-269.224744,0.00030136,7]
[344424124,1733447459716,-504.38444646,0.00030136,7]
[344424125,1733447459725,-500.0,0.00030136,7]
[344424126,1733447459735,-500.0,0.00030136,7]
[344424127,1733447459744,-211.63212687,0.00030136,7]
[344424128,1733447459753,-269.224744,0.00030136,7]
[344424129,1733447459763,-500.0,0.00030136,7]
[344424130,1733447459772,-500.0,0.00030136,7]
[344424131,1733447459782,-500.0,0.00030136,7]
[344424132,1733447459791,-500.0,0.00030136,7]
[344424133,1733447459800,-269.224737,0.00030136,7]
[344424134,1733447459810,-484.54685356,0.00030136,7]
[344424135,1733447459819,-500.0,0.00030136,7]
[344424136,1733447459828,-500.0,0.00030136,7]
[344424137,1733447459837,-502.77936736,0.00030136,7]
[344424138,1733447459847,-500.0,0.00030136,7]
[344424139,1733447459857,-500.0,0.00030136,7]
[344424140,1733447459866,-641.32,0.00030136,7]
[344424141,1733447459875,-500.0,0.00030136,7]
[344424142,1733447459885,-500.0,0.00030136,7]
[344424143,1733447459894,-547.46817792,0.00030136,7]
[344424144,1733447459904,-500.0,0.00030136,7]
[344424145,1733447459915,-641.32,0.00030136,7]
[344424146,1733447459924,-500.0,0.00030136,7]
[344424147,1733447459934,-500.0,0.00030136,7]
[344424148,1733447459944,-641.32,0.00030136,7]
[344424149,1733447459954,-500.0,0.00030136,7]
[344424150,1733447459964,-500.0,0.00030136,7]
[344424151,1733447459973,-641.32,0.00030136,7]
[344424152,1733447459982,-500.0,0.00030136,7]
[344424153,1733447459991,-500.0,0.00030136,7]
[344424154,1733447460001,-641.32,0.00030136,7]
[344424155,1733447460010,-500.0,0.00030136,7]
[344424156,1733447460020,-641.32,0.00030136,7]
[344424157,1733447460029,-500.0,0.00030136,7]
[344424158,1733447460039,-500.0,0.00030136,7]
[344424159,1733447460048,-641.32,0.00030136,7]
[344424160,1733447460058,-500.0,0.00030136,7]
[344424161,1733447460067,-500.0,0.00030136,7]
[344424162,1733447460078,-641.32,0.00030136,7]
[344424163,1733447460087,-500.0,0.00030136,2]
[344424164,1733447460097,-641.32,0.00030136,7]
[344424165,1733447460107,-500.0,0.00030136,7]
[344424166,1733447460117,-502.46019054,0.00030136,2]
[344424167,1733447460127,-641.32,0.00030136,7]
[344424168,1733447460137,-641.32,0.00030136,7]
[344424169,1733447460147,-504.88571146,0.00030136,7]
[344424170,1733447460155,-641.32,0.00030136,7]
[344424171,1733447460166,-641.32,0.00030136,7]
[344424172,1733447460176,-500.0,0.00030136,7]
[344424173,1733447460186,-641.32,0.00030136,7]
[344424174,1733447460195,-500.0,0.00030136,7]
[344424175,1733447460204,-500.0,0.00030136,7]
[344424176,1733447460214,-641.32,0.00030136,7]
[344424177,1733447460223,-130.78984206,0.00030136,7]
[344424178,1733447460781,-369.21015794,0.00030136,7]
[344424179,1733447460791,-500.0,0.00030136,7]
[344424180,1733447460801,-641.32,0.00030136,7]
[344424181,1733447460811,-593.25777336,0.00030136,7]
[344424182,1733447460821,-258.2121587,0.00030136,7]
[344424183,1733447460834,-241.7878413,0.00030136,7]
[344424184,1733447460843,-641.32,0.00030136,7]
[344424185,1733447460853,-500.0,0.00030136,7]
[344424186,1733447460863,-500.0,0.00030136,7]
[344424187,1733447460872,-546.68224695,0.00030136,7]
[344424188,1733447788498,164.959259,0.00013973,2]
[344424194,1733448393368,167.517874,0.00013973,2]
[344424253,1733448632361,-300.0,0.00019989,2]
[344424254,1733448632370,-300.0,0.00019989,2]
[344424255,1733448632380,-248.5030549,0.0001999,2]
[344424256,1733448632392,-15230.63066576,0.0001999,2]
[344424257,1733448632405,-11813.59113486,0.0001999,2]
[344424271,1733448638165,-5765.32586318,0.0001999,2]
[344424291,1733448638359,-18424.0679676,0.0001999,2]
[344424294,1733448638370,-369.99999999,0.0001999,2]
[344424342,1733448640114,-17048.95067963,0.0001999,2]
[344424343,1733448640128,-11066.39483617,0.0001999,2]
[344424344,1733448640138,-1822.83631383,0.00021666,2]
[344424345,1733448640147,-420.0,0.00021766,2]
[344424346,1733448640157,-420.0,0.00021988,2]
[344424347,1733448640166,-1822.83631376,0.00022962,2]
[344424348,1733448640175,-266.31,0.00023113,2]
[344424349,1733448640185,-402.30804334,0.000236,2]
[344424350,1733448640194,-587.0,0.00023701,2]
[344424351,1733448640203,-508.6149256,0.00024,2]
[344424352,1733448640212,-587.0,0.00024187,2]
[344424353,1733448640222,-24900.0,0.00024225,2]
[344424354,1733448640231,-1822.83631376,0.00024258,2]
[344424355,1733448640240,-2936.0,0.00024341,2]
[344424356,1733448640249,-1214.69661331,0.00024444,2]
[344424357,1733448640258,-110.2368924,0.00025,2]
[344424370,1733448643485,-1319.83478166,0.00025,2]
[344424371,1733448643495,-1066.20602076,0.00025,2]
[344424384,1733448952656,483.0,0.00027,30]
[344424385,1733449053944,175.3564733,0.00013973,2]
[344424395,1733449685545,168.671956,0.00013973,2]
[344424450,1733449832595,-992.18786434,0.00022987,2]
[344424452,1733449832605,-177.052947,0.00023022,2]
[344424454,1733449832614,-250.0,0.00023269,2]
[344424456,1733449832623,-300.0,0.00023414,2]
[344424458,1733449832633,-300.0,0.00023414,2]
[344424460,1733449832642,-24900.0,0.00023415,2]
[344424462,1733449832652,-207.6960487,0.00023562,2]
[344424464,1733449832661,-9559.01145903,0.00023966,2]
[344424466,1733449832670,-9559.01145903,0.00024135,2]
[344424467,1733449832682,-9559.01145903,0.00024623,2]
[344424470,1733449832692,-380.0,0.00024658,2]
[344424471,1733449832701,-9559.01145905,0.00024868,2]
[344424474,1733449832711,-29343.0,0.00025,2]
[344424475,1733449832720,-180.9458317,0.00025129,2]
[344424477,1733449832729,-10338.82259666,0.00025205,8]
[344424479,1733449832739,-173.261,0.00025286,9]
[344424481,1733449832749,-420.0,0.00025407,2]
[344424483,1733449832758,-420.0,0.00025756,2]
[344424485,1733449832768,-519.55488484,0.00026,2]
[344424487,1733449832778,-3452.70076118,0.00026947,2]
[344424489,1733449832787,-78361.73749364,0.00027,2]
[344424491,1733449832796,-213.0,0.00027,2]
[344424494,1733449832807,-36799.55743737,0.00027,2]
[344424495,1733449832816,-680.88,0.00027397,2]
[344424497,1733449832826,-156.16777351,0.00027495,2]
[344424501,1733449832836,-213.0,0.00027671,2]
[344424503,1733449832845,-3452.70076117,0.00027719,2]
[344424505,1733449832855,-160.0,0.00028192,3]
[344424507,1733449832864,-343.0465611,0.000282,2]
[344424509,1733449832873,-286.628798,0.000282,18]
[344424511,1733449832883,-587.0,0.00028331,2]
[344424513,1733449832891,-3452.70076117,0.00028492,2]
[344424516,1733449832901,-151.0,0.000285,19]
[344424517,1733449832910,-431.597,0.0002863,2]
[344424519,1733449832920,-226.6212283,0.00028657,30]
[344424522,1733449832931,-213.2496734,0.00028657,30]
[344424523,1733449832940,-213.2496734,0.00028657,30]
[344424525,1733449832950,-334.040308,0.00028674,30]
[344424527,1733449832960,-680.88,0.00028767,5]
[344424529,1733449832969,-213.0,0.00028767,2]
[344424531,1733449832978,-151.0,0.000288,18]
[344424533,1733449832987,-155.05838868,0.0002887,2]
[344424535,1733449832997,-150.64,0.00028929,2]
[344424537,1733449833006,-184.645,0.00028929,2]
[344424539,1733449833015,-2178.572,0.00028929,2]
[344424541,1733449833026,-2360.045,0.00028929,2]
[344424543,1733449833037,-229.14975994,0.00028998,8]
[344424545,1733449833047,-160.0,0.00029155,4]
[344424547,1733449833058,-151.0,0.000292,13]
[344424549,1733449833068,-3452.70076117,0.00029264,2]
[344424551,1733449833078,-151.0,0.000295,14]
[344424553,1733449833089,-213.0944069,0.000296,30]
[344424555,1733449833099,-151.0,0.000298,11]
[344424557,1733449833109,-1143.71536149,0.00029815,2]
[344424559,1733449833119,-242982.05408223,0.0002999,2]
[344424619,1733449838496,-13808.85530934,0.0002999,2]
[344424620,1733449838510,-6497.19920648,0.0002999,2]
[344424665,1733449843667,-634.98546176,0.0002999,2]
[344424666,1733449843679,-19002.57805259,0.0002999,2]
[344424668,1733449843693,-11524.42763457,0.0002999,2]
[344424682,1733449846554,-1227.998168,0.00025274,2]
[344424698,1733450343609,168.410377,0.00013973,2]
[344424750,1733451009021,165.4503211,0.00013973,2]
[344424813,1733451032786,-293.80912071,0.000269,2]
[344424816,1733451032796,-191.655719,0.00027,2]
[344424819,1733451032805,-624.14,0.00027397,2]
[344424822,1733451032814,-456.94456457,0.00027925,2]
[344424831,1733451032851,-556.86521642,0.00027925,2]
[344424834,1733451032862,-633.90707799,0.00027925,2]
[344424895,1733451038647,-583.09,0.00027925,2]
[344424896,1733451038659,-16612.9988999,0.00027925,2]
[344424897,1733451038670,-2215.25392882,0.00027925,2]
[344424898,1733451038680,-414.137,0.0002863,2]
[344424899,1733451038689,-624.14,0.00028767,5]
[344424900,1733451038700,-621.85335982,0.00029688,2]
[344424901,1733451038713,-5000.0,0.00029707,7]
[344424902,1733451038723,-1086.99589929,0.000299,2]
[344424903,1733451038732,-57682.85258014,0.0002999,2]
[344424904,1733451038744,-7951.68381146,0.0002999,2]
[344424905,1733451038756,-51466.31298718,0.0002999,2]
[344424909,1733451040540,-1915.60996234,0.0002999,2]
[344424910,1733451040552,-367.94,0.0002999,2]
[344424924,1733451043658,-9634.73905122,0.0002999,2]
[344424926,1733451043670,-4745.54616309,0.0002999,2]
[344424942,1733451046839,-9872.84624028,0.0002999,2]
[344424953,1733451773865,168.214193,0.00013973,2]
[344424971,1733452100515,9274.35811179,0.000125,2]
[344424972,1733452121681,998.32700089,0.0001,2]
[344424974,1733452125211,1000.0,0.0001,2]
[344425104,1733452238716,-300.0,0.00021999,2]
[344425106,1733452238726,-300.0,0.00021999,2]
[344425108,1733452238736,-540.0,0.00022,2]
[344425167,1733452240720,-25162.38453869,0.00022,2]
[344425168,1733452240731,-420.0,0.00023906,2]
[344425170,1733452240741,-400.0,0.00024199,2]
[344425171,1733452240750,-587.0,0.00025977,2]
[344425172,1733452240760,-762.36764662,0.00026,2]
[344425173,1733452240769,-16671.0,0.00027,2]
[344425174,1733452240779,-10908.11812481,0.00027,2]
[344425175,1733452240790,-4461.34046695,0.000275,2]
[344425176,1733452240800,-151.34629897,0.00028265,2]
[344425177,1733452240810,-415.982,0.0002849,2]
[344425178,1733452240819,-409.4569742,0.00028714,2]
[344425179,1733452240829,-155.00291943,0.00028797,2]
[344425180,1733452240838,-500.0,0.00029136,120]
[344425181,1733452240848,-500.0,0.00029136,120]
[344425182,1733452240857,-551.62,0.00029136,120]
[344425183,1733452240867,-156.13955768,0.00029196,2]
[344425184,1733452240877,-410.32338954,0.00029989,2]
[344425185,1733452240887,-150.01,0.00029989,2]
[344425186,1733452240897,-16135.70261555,0.0002999,2]
[344425187,1733452240910,-39363.7987674,0.0002999,2]
[344425202,1733452243870,-44476.0821186,0.0002999,2]
[344425204,1733452243882,-35069.17086803,0.0002999,2]
[344425207,1733452244063,-10216.83347105,0.0002999,2]
[344425231,1733452246918,-65229.98701844,0.0002999,2]
[344425232,1733452246930,-61213.44989582,0.0002999,2]
[344425329,1733453015950,166.425655,0.00013973,2]
[344425369,1733453432923,-180.38440784,0.0002,2]
[344425371,1733453432932,-250.0,0.00028021,2]
[344425373,1733453432941,-170.1937845,0.0002844,2]
[344425375,1733453432950,-201.5906806,0.0002848,2]
[344425377,1733453432960,-398.904,0.0002849,2]
[344425379,1733453432969,-305.8822802,0.00028714,2]
[344425382,1733453432982,-233.138568,0.00028714,2]
[344425384,1733453432991,-300.0,0.00028782,2]
[344425386,1733453433001,-5897.0616468,0.00028783,2]
[344425388,1733453433011,-346.062,0.00029305,2]
[344425390,1733453433020,-1279.735578,0.000299,2]
[344425391,1733453433029,-552.56585946,0.00029989,2]
[344425393,1733453433039,-3452.85573543,0.0002999,2]
[344425396,1733453433049,-500.0,0.0002999,2]
[344425398,1733453433059,-510.41589593,0.0002999,2]
[344425400,1733453433069,-542.00922101,0.0002999,2]
[344425402,1733453433078,-173.26164116,0.00029999,24]
[344425403,1733453433088,-572.13,0.00029999,3]
[344425405,1733453433097,-248.2032693,0.0003,2]
[344425496,1733453447038,-257.3121276,0.0003,2]
[344425497,1733453447048,-5948.29951692,0.0003,2]
[344425526,1733453634453,166.249455,0.00013973,2]
[344425527,1733453715439,9795.85958707,0.00027,30]
[344425833,1733454292007,165.920366,0.00013973,2]
[344425893,1733454632172,-975.48,0.000239,2]
[344426163,1733454640299,-144.28863075,0.000239,2]
[344426165,1733454640309,-205.66199988,0.00023999,2]
[344426167,1733454640319,-66.26634062,0.00023999,2]
[344426451,1733454643343,-433.73365938,0.00023999,2]
[344426453,1733454643354,-227.33988304,0.00023999,2]
[344426455,1733454643363,-289.38816339,0.00023999,2]
[344426457,1733454643373,-240.25009233,0.00023999,2]
[344426459,1733454643384,-500.0,0.00023999,2]
[344426461,1733454643394,-500.0,0.00023999,2]
[344426463,1733454643403,-500.0,0.00023999,2]
[344426465,1733454643413,-500.0,0.00023999,2]
[344426467,1733454643423,-500.0,0.00023999,2]
[344426469,1733454643433,-546.00295972,0.00023999,2]
[344426471,1733454643443,-500.0,0.00023999,2]
[344426473,1733454643454,-500.0,0.00023999,2]
[344426475,1733454643464,-343.03148816,0.00023999,2]
[344426477,1733454643473,-500.0,0.00023999,2]
[344426479,1733454643483,-411.54848832,0.00023999,2]
[344426481,1733454643493,-23797.80946199,0.00024,2]
[344426769,1733454646310,-29109.22532797,0.00024,2]
[344426771,1733454646320,-94457.45793057,0.00024,2]
[344429839,1733454679316,1523.57319294,0.00027,30]
[344437509,1733454928484,165.920366,0.00013973,2]
[344437512,1733455490299,153.9,0.00027,30]
[344437513,1733455526925,164.3842774,0.00013973,2]
[344437548,1733455709751,155.09237959,0.000176,2]
[344437626,1733455838405,-300.0,0.00022977,2]
[344437627,1733455838415,-10669.0158189,0.00022978,2]
[344437628,1733455838425,-732.9785367,0.00023178,2]
[344437629,1733455838434,-233.138568,0.00023302,2]
[344437630,1733455838443,-979.79755188,0.000239,2]
[344437631,1733455838452,-202.59087777,0.00023973,2]
[344437632,1733455838462,-260.51830511,0.00023973,2]
[344437633,1733455838471,-7748.44461802,0.00023999,3]
[344437634,1733455838480,-503.62217376,0.00023999,2]
[344437635,1733455838489,-22176.06147117,0.00024,2]
[344437636,1733455838500,-4277.45592382,0.00024,2]
[344437637,1733455838510,-782.12687758,0.00024,2]
[344437638,1733455838521,-1294.48773927,0.00024,2]
[344437639,1733455838533,-12510.38684607,0.00024,2]
[344437662,1733455843370,-1583.95191532,0.00024,2]
[344437674,1733456131597,165.613147,0.00013973,2]
[344437678,1733456720964,6533.93162347,0.00027,30]
[344437679,1733456731892,164.384279,0.00013973,2]
[344437680,1733456739195,10000.0,0.000261,60]
[344437682,1733456764525,10000.0,0.00022,30]
[344437683,1733456786019,661.13,0.0002,10]
[344437706,1733457032942,-288.060606,0.00023005,2]
[344437708,1733457032952,-170.488455,0.0002318,2]
[344437712,1733457032961,-386.762629,0.00023807,2]
[344437716,1733457032971,-500.0,0.00023973,2]
[344437719,1733457032980,-500.0,0.00023973,2]
[344437721,1733457032991,-500.0,0.00023973,2]
[344437725,1733457033001,-300.0,0.00023999,2]
[344437728,1733457033010,-4988.28161249,0.00024,2]
[344437731,1733457033024,-976.66994,0.00024,2]
[344437754,1733457033181,-822.61256022,0.00024,2]
[344437794,1733457038751,-913.72330545,0.00024,2]
[344437890,1733457043671,-3545.65458663,0.00024,2]
[344437899,1733457630391,165.497088,0.00013973,2]
[344437980,1733458232650,-288.060607,0.0002291,2]
[344437981,1733458232659,-158.69677374,0.00023,2]
[344437982,1733458232669,-9498.17222768,0.00023157,2]
[344437983,1733458232678,-300.0,0.00023185,2]
[344437984,1733458232687,-300.0,0.00023186,2]
[344437985,1733458232697,-158.69677373,0.00023189,2]
[344437987,1733458232706,-979.25785793,0.00023229,2]
[344437989,1733458232715,-26383.23991148,0.00023329,2]
[344437991,1733458232727,-9723.36456667,0.00023329,2]
[344437993,1733458232736,-9498.17222768,0.00023372,2]
[344437995,1733458232745,-9498.17222769,0.00023815,2]
[344437997,1733458232754,-210.064188,0.0002386,2]
[344437999,1733458232763,-690.54015225,0.000239,2]
[344438001,1733458232772,-500.0,0.00023973,2]
[344438003,1733458232782,-1442.14938785,0.00023999,2]
[344438005,1733458232791,-160.65876305,0.00023999,2]
[344438007,1733458232800,-150.01,0.00023999,2]
[344438009,1733458232810,-1087.91123218,0.00023999,2]
[344438011,1733458232819,-152.542895,0.00023999,7]
[344438013,1733458232829,-151.0,0.00023999,7]
[344438015,1733458232839,-216.767741,0.00023999,7]
[344438017,1733458232848,-251.65114,0.00023999,7]
[344438019,1733458232857,-251.65114,0.00023999,7]
[344438021,1733458232867,-151.0,0.00023999,7]
[344438023,1733458232876,-153.714332,0.00023999,7]
[344438025,1733458232885,-151.0,0.00023999,7]
[344438027,1733458232895,-151.0,0.00023999,7]
[344438029,1733458232904,-194.631986,0.00023999,7]
[344438030,1733458232914,-194.631986,0.00023999,7]
[344438031,1733458232924,-159.13791813,0.00023999,2]
[344438032,1733458232933,-552.57171438,0.00023999,2]
[344438034,1733458232943,-168.17506463,0.00023999,2]
[344438036,1733458232951,-500.0,0.00023999,2]
[344438038,1733458232960,-500.0,0.00023999,2]
[344438040,1733458232971,-470.03701311,0.00023999,2]
[344438042,1733458232980,-204.78127646,0.00023999,2]
[344438044,1733458232989,-194.99834067,0.00023999,2]
[344438046,1733458232999,-398.16140339,0.00023999,2]
[344438048,1733458233011,-500.0,0.00023999,2]
[344438050,1733458233021,-500.0,0.00023999,2]
[344438052,1733458233030,-500.0,0.00023999,2]
[344438054,1733458233040,-500.0,0.00023999,2]
[344438056,1733458233051,-500.0,0.00023999,2]
[344438058,1733458233060,-500.0,0.00023999,2]
[344438060,1733458233070,-152.036854,0.00023999,7]
[344438062,1733458233081,-151.0,0.00023999,7]
[344438064,1733458233091,-151.0,0.00023999,7]
[344438066,1733458233101,-151.0,0.00023999,7]
[344438068,1733458233111,-158.704004,0.00023999,7]
[344438070,1733458233121,-151.0,0.00023999,7]
[344438072,1733458233132,-1660.112899,0.00023999,7]
[344438074,1733458233143,-250.75952,0.00023999,7]
[344438076,1733458233153,-250.75952,0.00023999,7]
[344438078,1733458233163,-1238.683092,0.00023999,7]
[344438080,1733458233172,-1238.683092,0.00023999,7]
[344438082,1733458233181,-151.0,0.00023999,7]
[344438083,1733458233190,-323.961269,0.00023999,7]
[344438084,1733458233200,-323.961269,0.00023999,7]
[344438085,1733458233209,-151.0,0.00023999,7]
[344438086,1733458233219,-323.961269,0.00023999,7]
[344438087,1733458233228,-323.961269,0.00023999,7]
[344438088,1733458233238,-506.461276,0.00023999,7]
[344438089,1733458233247,-506.461276,0.00023999,7]
[344438090,1733458233257,-261.655836,0.00023999,7]
[344438091,1733458233266,-261.655836,0.00023999,7]
[344438092,1733458233276,-151.0,0.00023999,7]
[344438093,1733458233286,-151.0,0.00023999,7]
[344438094,1733458233295,-374.994652,0.00023999,7]
[344438095,1733458233305,-374.994652,0.00023999,7]
[344438096,1733458233314,-285.150694,0.00023999,7]
[344438097,1733458233324,-285.150694,0.00023999,7]
[344438098,1733458233333,-5000.0,0.00023999,2]
[344438099,1733458233343,-5000.0,0.00023999,2]
[344438100,1733458233353,-285.150694,0.00023999,7]
[344438101,1733458233361,-5000.0,0.00023999,2]
[344438102,1733458233371,-285.150694,0.00023999,7]
[344438103,1733458233380,-5000.0,0.00023999,2]
[344438104,1733458233389,-3712.881056,0.00023999,2]
[344438105,1733458233400,-151.0,0.00023999,7]
[344438106,1733458233409,-151.0,0.00023999,7]
[344438107,1733458233419,-151.0,0.00023999,7]
[344438108,1733458233429,-151.0,0.00023999,7]
[344438109,1733458233439,-151.0,0.00023999,7]
[344438110,1733458233448,-151.0,0.00023999,7]
[344438111,1733458233457,-28675.88377019,0.00024,2]
[344438115,1733458238598,-493.952136,0.00023999,7]
[344438116,1733458238608,-493.952136,0.00023999,7]
[344438117,1733458238618,-44132.65875045,0.00024,2]
[344438118,1733458238630,-635.69800004,0.00024,2]
[344438119,1733458238644,-36086.04230441,0.00024,2]
[344438120,1733458238663,-97767.65455,0.00024,2]
[344438140,1733458243604,-150.01,0.00023999,2]
[344438141,1733458243614,-493.952136,0.00023999,7]
[344438142,1733458243624,-870.32898574,0.00023999,2]
[344438143,1733458243633,-493.952136,0.00023999,7]
[344438144,1733458243643,-85850.26243061,0.00024,2]
[344438149,1733458246525,-621.18123144,0.00024,2]
[344438156,1733458271377,165.497088,0.00013973,2]
[344438174,1733458974315,165.311393,0.00013973,2]
[344438187,1733459302699,532.54773246,0.000125,2]
[344438191,1733459323961,3570.65305643,0.0001,2]